bitfinex/quotes_ETHUSD_20250403
["timestamp","ask_amount","ask_price","bid_price","bid_amount"]
[1743685488898,8.67506,1762.1,1761.6,5.67649]
[1743685489080,5.67549,1762.0,1761.5,11.35381]
[1743685489287,5.67571,1761.9,1761.5,5.67687]
[1743685489796,11.39416007,1761.9,1761.5,0.0567579]
[1743685489996,5.67547,1762.0,1761.5,6.30703769]
[1743685490197,5.71801007,1762.0,1761.5,6.30703769]
[1743685490365,5.71731007,1762.2,1761.5,0.63015769]
[1743685490566,5.67508,1762.1,1761.6,5.67644]
[1743685490775,0.04254007,1762.1,1761.7,0.0567547]
[1743685491102,5.67554,1762.0,1761.5,11.35359]
[1743685491309,5.67504,1762.1,1761.4,5.67723]
[1743685491613,5.67592,1761.9,1761.5,5.67686]
[1743685491778,5.67614,1761.8,1761.3,7.33161]
[1743685491977,11.35171,1761.9,1761.4,5.73387429]
[1743685492182,5.67572,1761.9,1761.4,5.67711]
[1743685492403,12.94749,1762.3,1761.8,11.35185]
[1743685492585,5.67565,1762.0,1761.5,5.67693]
[1743685492802,5.67565,1762.0,1761.5,5.73361796]
[1743685493019,5.67509,1762.1,1761.5,0.05675796]
[1743685493199,7.27307,1762.3,1761.8,5.67598]
[1743685493494,0.04254007,1762.2,1761.7,7.27568]
[1743685493694,5.71742007,1762.2,1761.7,7.27568]
[1743685493998,11.39242007,1762.2,1761.7,13.00862703]
[1743685494168,7.27294,1762.3,1761.8,5.67595]
[1743685494369,7.31548007,1762.3,1761.9,5.73242896]
[1743685494691,1.5985,1762.3,1761.9,5.73229896]
[1743685494894,5.67477,1762.2,1761.8,5.67599]
[1743685495072,5.67477,1762.2,1761.7,7.27582]
[1743685495268,5.6754,1762.0,1761.5,5.67687]
[1743685495468,5.71834007,1761.9,1761.5,5.67687]
[1743685495683,5.6754,1762.0,1761.5,11.4104709]
[1743685495882,5.6753,1762.1,1761.6,5.67656]
[1743685496079,5.67478,1762.2,1761.7,5.73291482]
[1743685496282,1.5985,1762.3,1761.8,5.67587]
[1743685496468,5.67472,1762.2,1761.8,5.67587]
[1743685496673,7.31573007,1762.3,1761.8,11.35172]
[1743685496873,1.5985,1762.3,1761.9,5.73234411]
[1743685497066,7.27507,1762.5,1762.0,5.67534]
[1743685497274,8.67347,1762.6,1761.9,1.71445411]
[1743685497275,5.67365,1762.6,1762.1,6.242474]
[1743685497579,5.67387,1762.5,1762.0,5.67531]
[1743685497779,5.67387,1762.5,1762.1,11.34991]
[1743685497975,5.67387,1762.5,1762.0,5.67525]
[1743685498179,5.71682007,1762.4,1761.9,7.33326]
[1743685498376,5.67456,1762.3,1761.9,0.05674466]
[1743685498582,5.71746007,1762.2,1761.8,5.67584]
[1743685498980,5.71746007,1762.2,1761.4,5.67729]
[1743685498981,5.67612,1761.8,1761.4,5.67729]
[1743685499283,5.71816007,1762.0,1761.5,5.67686]
[1743685499482,5.67573,1761.9,1761.4,5.67728]
[1743685499683,11.39497007,1761.8,1761.3,5.67749]
[1743685499883,11.35243,1761.8,1761.3,5.67749]
[1743685500180,7.29396,1762.1,1761.6,5.67652]
[1743685500502,5.67508,1762.1,1761.7,5.67623]
[1743685500680,7.663,1762.2,1761.8,5.67577]
[1743685500877,7.663,1762.2,1761.9,5.73232493]
[1743685501079,7.663,1762.2,1761.9,5.73228493]
[1743685501301,5.67354,1762.6,1762.1,5.67477]
[1743685501469,5.71660007,1762.5,1762.0,6.24855849]
[1743685501674,5.71660007,1762.5,1762.1,5.67499]
[1743685501876,8.71641007,1762.5,1761.6,1.5209]
[1743685502103,5.67428,1762.4,1761.9,5.67548]
[1743685502283,3.04254007,1762.5,1762.0,6.242898]
[1743685502284,5.71634007,1762.5,1762.0,6.242898]
[1743685502486,5.71634007,1762.5,1762.1,0.05674249]
[1743685502679,9.1733,1762.7,1762.2,5.6746]
[1743685502680,20.5198,1762.7,1762.2,5.6746]
[1743685507830,5.67538,1762.0,1761.6,12.92176]
[1743685508008,5.67477,1762.2,1761.7,7.02509096]
[1743685508211,5.67532,1762.1,1761.7,0.05675498]
[1743685508511,7.36900007,1762.2,1761.6,7.24519]
[1743685508512,5.67441,1762.3,1761.9,5.67563]
[1743685508723,7.29173,1762.4,1762.0,5.67536]
[1743685508906,7.33427007,1762.4,1762.0,5.67536]
[1743685509216,7.33427007,1762.4,1762.0,0.05674598]
[1743685509514,5.67447,1762.3,1762.0,0.05674598]
[1743685509718,7.31293,1762.7,1762.2,5.67448]
[1743685509929,0.05,1762.9,1762.6,5.67321]
[1743685510080,0.05,1762.9,1762.4,1.6625]
[1743685510286,0.05,1762.9,1762.4,7.33655]
[1743685510509,3.04254007,1762.8,1762.2,1.6625]
[1743685510726,3.04254007,1762.8,1762.1,5.67504]
[1743685510727,5.67406,1762.5,1762.1,5.67504]
[1743685510880,0.04254007,1762.4,1762.0,6.8161146]
[1743685511083,5.67418,1762.4,1761.9,7.33206]
[1743685511283,0.04254007,1762.5,1761.9,7.33206]
[1743685511284,0.04254007,1762.5,1762.1,5.67504]
[1743685511484,8.71557007,1762.8,1762.3,5.67427]
[1743685511684,14.38867007,1762.8,1762.3,5.67424]
[1743685511880,5.67315,1762.7,1762.2,5.67455]
[1743685512132,9.2467,1762.9,1762.5,5.67364]
[1743685512419,0.05,1762.9,1762.7,5.67307]
[1743685512717,5.72271,1762.9,1762.4,7.33016]
[1743685513020,0.05,1762.9,1762.6,5.67342]
[1743685513591,0.05,1762.9,1762.5,5.67364]
[1743685513814,5.72254,1762.9,1762.4,5.67404]
[1743685514013,5.72254,1762.9,1762.3,5.67435]
[1743685514014,5.67329,1762.7,1762.3,5.67435]
[1743685514213,5.71583007,1762.7,1762.3,5.67435]
[1743685514515,0.04254007,1762.7,1762.3,5.73102839]
[1743685514714,0.05,1762.9,1762.6,5.6734]
[1743685514915,0.05,1762.9,1762.7,5.67309]
[1743685515112,0.05,1762.9,1762.7,6.807739]
[1743685515320,0.05,1762.9,1762.7,1.134649]
[1743685515505,5.76511007,1762.9,1762.5,5.67364]
[1743685515690,0.05,1762.9,1762.6,5.67325]
[1743685516090,0.05,1762.9,1762.7,0.05672556]
[1743685516285,0.05,1762.9,1762.7,1.5462]
[1743685516521,0.05,1762.9,1762.6,5.67326]
[1743685516726,0.05,1762.9,1762.7,5.67298]
[1743685516895,0.05,1762.9,1762.6,6.240586]
[1743685517426,0.05,1762.9,1762.4,1.6348]
[1743685517634,11.39555,1762.9,1762.1,1.5824]
[1743685517867,5.71556007,1762.8,1762.3,5.67423]
[1743685518146,0.05,1762.9,1762.7,5.67311]
[1743685518308,0.05,1762.9,1762.7,5.67294]
[1743685518622,0.05,1762.9,1762.8,6.29680575]
[1743685518793,0.05,1762.9,1762.8,0.05672175]
[1743685519194,0.05,1762.9,1762.5,7.17725]
[1743685519195,5.72256,1762.9,1762.5,7.17725]
[1743685519432,0.05,1762.9,1762.5,1.56032983]
[1743685519628,0.05,1762.9,1762.8,5.67279]
[1743685519812,0.05,1762.9,1762.8,5.72951402]
[1743685520001,0.05,1762.9,1762.8,8.40585142]
[1743685520206,0.05,1762.9,1762.8,8.3491274]
[1743685520612,0.05,1762.9,1762.8,6.8130274]
[1743685521021,0.05,1762.9,1762.8,1.1402374]
[1743685521332,0.05,1762.9,1762.7,5.72958344]
[1743685521534,5.72247,1762.9,1762.5,7.20084]
[1743685521834,0.05,1762.9,1762.5,7.20092]
[1743685522035,0.05,1762.9,1762.5,1.5272]
[1743685522211,0.05,1762.9,1762.7,5.67297]
[1743685522418,5.76511007,1762.9,1762.5,12.87448]
[1743685522616,0.05,1762.9,1762.5,14.161928]
[1743685522817,0.05,1762.9,1762.2,7.33391]
[1743685522818,3.09254007,1762.9,1762.2,7.33391]
[1743685523012,5.76508007,1762.9,1762.3,0.05673663]
[1743685523337,0.09254007,1762.9,1762.2,7.33389]
[1743685523515,5.67358,1762.6,1762.2,7.33389]
[1743685523832,0.04254007,1762.6,1762.2,5.67471]
[1743685524033,5.67359,1762.6,1762.2,6.242041]
[1743685524341,5.67376,1762.5,1762.1,5.73163922]
[1743685524904,0.04254007,1762.5,1762.1,5.67504]
[1743685525131,0.04254007,1762.6,1762.3,5.6744]
[1743685525334,14.95865,1762.7,1762.3,5.6744]
[1743685525536,9.2855,1762.7,1762.3,11.34864]
[1743685525761,1.68504007,1762.7,1762.3,6.809104]
[1743685525911,8.71534007,1762.8,1762.4,11.34776]
[1743685526239,3.04254007,1762.8,1762.4,11.34779]
[1743685526435,0.05,1762.9,1762.6,5.6732]
[1743685526648,0.05,1762.9,1762.7,5.67299]
[1743685526940,5.72248,1762.9,1762.5,5.6736]
[1743685527141,0.05,1762.9,1762.5,6.45976024]
[1743685527367,0.05,1762.9,1762.7,5.67283]
[1743685527708,0.05,1762.9,1762.7,5.6731]
[1743685527918,0.05,1762.9,1762.6,5.67327]
[1743685528126,0.05,1762.9,1762.7,5.72964018]
[1743685528331,0.05,1762.9,1762.7,0.6296942]
[1743685528521,0.05,1762.9,1762.7,6.24604402]
[1743685529139,0.05,1762.9,1762.5,6.40307]
[1743685529374,5.76511007,1762.9,1762.5,12.0767]
[1743685529578,0.09254007,1762.9,1762.6,5.67338]
[1743685529852,0.05,1762.9,1762.6,5.67328]
[1743685530357,5.72257,1762.9,1762.5,5.67374]
[1743685530569,0.04254007,1762.8,1762.2,5.67443]
[1743685530772,0.05,1762.9,1762.6,5.6733]
[1743685531053,0.05,1762.9,1762.6,5.67328]
[1743685531258,0.05,1762.9,1762.7,5.67311]
[1743685531425,0.05,1762.9,1762.6,5.67337]
[1743685531625,0.05,1762.9,1762.6,6.86475234]
[1743685531875,0.05,1762.9,1762.7,11.346]
[1743685532074,0.05,1762.9,1762.6,14.021245]
[1743685532379,0.05,1762.9,1762.6,6.808005]
[1743685532676,0.05,1762.9,1762.6,12.53801233]
[1743685532820,0.05,1762.9,1762.7,6.92685123]
[1743685533021,0.05,1762.9,1762.7,12.59982123]
[1743685533362,0.05,1762.9,1762.8,5.67279]
[1743685533739,0.05,1762.9,1762.8,5.72950615]
[1743685534437,0.05,1762.9,1762.8,7.36010615]
[1743685534632,0.05,1762.9,1762.8,9.35609089]
[1743685534938,0.05,1762.9,1762.8,12.29937474]
[1743685536248,1e-05,1762.9,1762.8,12.84937474]
[1743685536753,1e-05,1762.9,1762.8,12.7277043]
[1743685537945,1e-05,1762.9,1762.8,12.29937474]
[1743685538833,1e-05,1762.9,1762.8,13.26549548]
[1743685539203,0.05,1763.9,1763.7,5.66958]
[1743685539330,0.05,1763.9,1763.7,6.236538]
[1743685539529,0.05,1763.9,1763.8,5.66957]
[1743685540246,0.05,1763.9,1763.7,6.236538]
[1743685540445,0.05,1763.9,1763.6,5.67003]
[1743685540738,0.05,1763.9,1763.5,11.34081]
[1743685540936,0.05,1763.9,1763.5,5.67038]
[1743685541279,5.71928,1763.9,1763.2,10.27658]
[1743685541431,0.05,1763.9,1763.3,5.67108]
[1743685541755,0.05,1763.9,1763.3,5.7277787]
[1743685541756,5.67,1763.7,1763.3,5.7277787]
[1743685541955,1.5265,1763.6,1763.3,0.0566987]
[1743685542172,5.71239007,1763.8,1763.3,5.67102]
[1743685542372,11.3396,1763.8,1763.4,5.6707]
[1743685542733,1.5765,1763.9,1763.3,5.67102]
[1743685542734,1.5765,1763.9,1763.3,5.67112]
[1743685542965,1.61904007,1763.9,1763.3,5.67112]
[1743685543151,0.05,1763.9,1763.7,5.66987]
[1743685543353,0.05,1763.9,1763.6,5.6701]
[1743685543665,0.05,1763.9,1763.7,5.72648196]
[1743685544033,0.05,1763.9,1763.6,5.67005]
[1743685544243,5.71939,1763.9,1763.5,5.67047]
[1743685544529,0.05,1763.9,1763.6,5.67021]
[1743685544730,5.71928,1763.9,1763.5,7.0127412]
[1743685545127,5.66972,1763.8,1763.4,0.567112]
[1743685545332,7.21292,1763.6,1763.2,5.67125]
[1743685545578,1.5426,1763.6,1763.3,11.39885452]
[1743685545779,1.6069,1763.8,1763.1,5.42877452]
[1743685546085,1.6069,1763.8,1763.4,5.6708]
[1743685546277,12.94649,1763.8,1763.4,5.6708]
[1743685546432,12.94649,1763.8,1763.2,5.6714]
[1743685546433,0.04254007,1763.7,1763.2,5.6714]
[1743685546633,11.34102,1763.6,1763.2,5.6714]
[1743685546883,5.6705,1763.6,1763.2,5.6714]
[1743685547187,5.71318007,1763.5,1763.1,5.67177]
[1743685547347,5.71318007,1763.5,1763.1,11.34354]
[1743685547558,11.34014,1763.7,1763.3,5.67112]
[1743685547882,5.67086,1763.4,1762.9,1.6222]
[1743685548085,5.67153,1763.2,1762.8,7.66860474]
[1743685548230,5.71437007,1763.1,1762.6,7.22218]
[1743685548434,5.71437007,1763.1,1762.7,6.395228]
[1743685548665,12.95819,1763.3,1762.8,11.40198167]
[1743685548891,12.95819,1763.3,1762.9,5.67236]
[1743685548892,7.28661,1763.3,1762.9,5.67236]
[1743685549180,5.6706,1763.5,1763.1,5.6717]
[1743685549336,5.6706,1763.5,1763.1,6.80608]
[1743685549533,11.38391007,1763.5,1763.1,6.80608]
[1743685549728,1.5892,1763.6,1762.8,5.67258]
[1743685549729,5.67137,1763.3,1762.8,5.67258]
[1743685549969,7.25967,1763.6,1763.0,5.67214]
[1743685549970,5.6709,1763.4,1763.0,5.67214]
[1743685550142,5.6709,1763.4,1763.1,0.05671157]
[1743685550476,5.6709,1763.4,1763.0,5.67198]
[1743685550477,11.34195,1763.4,1763.0,5.67198]
[1743685550666,1.5892,1763.6,1762.8,5.67278]
[1743685550833,5.67194,1763.1,1762.7,6.395268]
[1743685551036,1.6385,1763.2,1762.9,5.67231]
[1743685551269,3.0,1763.3,1763.0,5.67203]
[1743685551563,7.32401,1763.4,1763.1,0.05671103]
[1743685551738,5.67123,1763.3,1762.9,5.67241]
[1743685551942,5.67123,1763.3,1762.9,5.67246]
[1743685552138,5.67123,1763.3,1762.9,6.87093268]
[1743685552983,0.04254007,1763.2,1762.7,0.722218]
[1743685553184,0.04254007,1763.2,1762.6,7.22225]
[1743685553185,5.67236,1763.0,1762.6,7.22225]
[1743685553373,5.67236,1763.0,1762.7,0.05672492]
[1743685553587,5.67188,1763.1,1762.7,0.05672492]
[1743685553878,0.04254007,1763.1,1762.7,0.05672492]
[1743685554087,5.67233,1763.0,1762.7,0.05672492]
[1743685554278,5.71453007,1763.1,1762.7,0.78461341]
[1743685554779,5.67259,1762.9,1762.5,5.67361]
[1743685554958,5.71513007,1762.9,1762.5,5.67361]
[1743685555153,5.67293,1762.8,1762.4,5.67399]
[1743685555555,5.67314,1762.7,1762.3,11.4447572]
[1743685555758,5.67293,1762.8,1762.4,5.73071113]
[1743685556281,5.67293,1762.8,1762.4,7.44825796]
[1743685556465,5.67349,1762.6,1762.3,4.2462872]
[1743685556669,1.5887,1763.0,1762.3,9.9205672]
[1743685556861,5.67324,1762.7,1762.4,0.05673943]
[1743685557064,0.04254007,1762.9,1762.3,4.2462872]
[1743685557065,11.34719,1762.6,1762.3,4.2462872]
[1743685557267,5.67359,1762.6,1762.3,4.2462872]
[1743685557447,5.67359,1762.6,1762.3,5.23837292]
[1743685557852,7.26431,1762.5,1762.3,4.2462872]
[1743685558100,12.93836,1762.5,1762.3,4.2462872]
[1743685558305,5.67408,1762.4,1761.9,5.9585646]
[1743685558464,5.67504,1762.2,1761.9,0.2830046]
[1743685558648,5.67443,1762.3,1761.8,1.6203]
[1743685558853,5.67443,1762.3,1761.8,7.58055479]
[1743685559053,5.67443,1762.3,1761.9,5.67566]
[1743685559248,5.67443,1762.3,1761.9,5.73240978]
[1743685559557,5.67413,1762.4,1761.9,0.05674978]
[1743685559748,5.67413,1762.4,1762.0,5.67519]
[1743685560282,5.6744,1762.3,1761.9,11.35121]
[1743685560477,5.6759,1761.9,1761.4,7.78079]
[1743685560783,1.55224007,1762.1,1761.7,5.67632]
[1743685561079,7.22740007,1762.1,1761.7,5.67632]
[1743685561282,1.5097,1762.1,1761.9,5.67562]
[1743685561481,7.618,1762.2,1761.9,11.35113]
[1743685561687,0.04254007,1762.1,1761.5,3.0]
[1743685561887,11.3503,1762.1,1761.7,5.67628]
[1743685562089,5.67505,1762.1,1761.6,5.67665]
[1743685562391,7.618,1762.2,1761.7,0.05675732]
[1743685562392,13.29276,1762.2,1761.7,0.05675732]
[1743685562583,7.618,1762.2,1761.9,5.67551]
[1743685563290,5.71782007,1762.1,1761.7,5.67617]
[1743685563487,0.04254007,1762.1,1761.7,1.13528]
[1743685563686,13.29283,1762.2,1761.8,5.6759]
[1743685563888,13.29283,1762.2,1761.8,11.35174]
[1743685564078,7.1838,1762.4,1761.9,5.73229054]
[1743685564258,1.5097,1762.4,1762.1,5.67488]
[1743685564459,0.04254007,1762.5,1762.1,5.67475]
[1743685564659,7.65954007,1762.6,1762.2,5.67459]
[1743685564862,7.617,1762.6,1762.4,5.67396]
[1743685565184,7.28146,1763.0,1762.6,5.67332]
[1743685565377,4.65184007,1763.0,1762.5,5.67375]
[1743685565569,4.65184007,1763.0,1762.3,5.67426]
[1743685565764,4.65184007,1763.0,1762.3,5.67427]
[1743685565970,5.67345,1762.6,1762.2,5.67472]
[1743685566166,5.67281,1762.8,1762.1,1.6322]
[1743685566386,5.71535007,1762.8,1762.4,5.67389]
[1743685566572,5.71535007,1762.8,1762.4,11.34786]
[1743685566896,0.60940907,1762.8,1762.1,7.30722]
[1743685567094,5.67396,1762.5,1762.1,5.67502]
[1743685567268,0.04254007,1762.6,1762.2,0.05674036]
[1743685567471,1.5485,1762.7,1762.4,5.67391]
[1743685567675,7.29931,1762.9,1762.5,5.67359]
[1743685567876,7.29931,1762.9,1762.6,5.67343]
[1743685568175,1.6268,1762.9,1762.6,11.40342807]
[1743685568481,16.28721,1763.0,1762.4,5.67405]
[1743685568482,10.615,1763.0,1762.4,5.67405]
[1743685568687,11.34598,1762.8,1762.4,5.67405]
[1743685568882,5.67311,1762.7,1762.3,7.2638]
[1743685569095,5.71565007,1762.7,1762.3,5.6744]
[1743685569276,5.71597007,1762.6,1762.2,5.67466]
[1743685569475,11.34718,1762.6,1762.2,6.394166]
[1743685569679,5.6738,1762.5,1762.2,5.73134032]
[1743685569868,5.67343,1762.6,1762.3,5.67436]
[1743685570195,5.67343,1762.6,1762.2,5.6746]
[1743685570377,5.67343,1762.6,1762.2,5.7313403]
[1743685570699,0.04254007,1762.6,1762.5,5.67375]
[1743685570905,1.6023,1763.0,1762.7,5.673]
[1743685571399,7.31700007,1763.0,1762.6,11.3466]
[1743685571562,7.31700007,1763.0,1762.6,5.6733]
[1743685571765,7.31700007,1763.0,1762.6,11.34659]
[1743685572399,12.98931007,1763.0,1762.6,5.67329]
[1743685572600,7.27446,1763.0,1762.6,5.67329]
[1743685572903,7.27446,1763.0,1762.6,12.08413352]
[1743685573204,12.98938007,1763.0,1762.6,6.3540967]
[1743685573399,12.98938007,1763.0,1762.1,7.19592]
[1743685573400,1.6023,1763.0,1762.4,5.674]
[1743685573702,5.67323,1762.7,1762.3,11.34876]
[1743685574298,7.27447,1763.0,1762.1,7.19592]
[1743685574299,5.71616007,1762.6,1762.2,5.67464]
[1743685574617,5.71616007,1762.6,1762.2,5.73131036]
[1743685574819,5.71616007,1762.6,1762.2,6.4565414]
[1743685575175,0.04254007,1762.6,1762.3,5.67424]
[1743685575492,5.71540007,1762.8,1762.4,5.73051032]
[1743685575689,5.67355,1762.6,1762.2,6.39990104]
[1743685575918,11.34721,1762.6,1762.2,6.45664139]
[1743685576071,5.67317,1762.7,1762.3,5.67413]
[1743685576513,11.34644,1762.7,1762.3,11.3484]
[1743685576667,11.34644,1762.7,1762.3,5.67413]
[1743685576882,1.70024007,1762.6,1762.0,5.67522]
[1743685577204,1.70024007,1762.6,1761.4,7.608]
[1743685577205,4.70024007,1762.6,1761.4,7.608]
[1743685577405,5.67554,1762.0,1761.6,7.25148]
[1743685577624,5.67554,1762.0,1761.7,5.67623]
[1743685577625,0.04254007,1762.0,1761.7,5.67623]
[1743685577806,5.71794007,1762.0,1761.7,6.81719097]
[1743685578145,0.04254007,1762.0,1761.5,5.67697]
[1743685578294,13.28177,1762.2,1761.8,11.35172]
[1743685578688,7.607,1762.2,1761.9,5.67565]
[1743685579239,7.607,1762.2,1762.0,5.67522]
[1743685579437,7.607,1762.2,1761.7,5.67621]
[1743685579640,5.67548,1762.0,1761.6,5.6766]
[1743685579790,5.71770007,1762.1,1761.7,5.67619]
[1743685580335,7.607,1762.2,1762.0,5.67525]
[1743685580622,1.5921,1762.5,1762.2,5.67462]
[1743685580816,1.5921,1762.5,1762.2,5.6746]
[1743685581113,1.5921,1762.5,1761.9,7.21506]
[1743685581114,5.67411,1762.4,1761.9,7.21506]
[1743685581296,0.04254007,1762.3,1762.0,5.67535]
[1743685581497,0.04254007,1762.3,1761.9,6.397096]
[1743685581718,5.67411,1762.4,1762.0,11.35054]
[1743685582239,5.71665007,1762.4,1762.0,11.35054]
[1743685582536,7.26591,1762.5,1762.2,5.6747]
[1743685582694,7.30845007,1762.5,1762.2,5.6747]
[1743685583137,5.67457,1762.3,1761.9,6.397076]
[1743685583286,5.71711007,1762.3,1761.9,6.397076]
[1743685583490,5.71711007,1762.3,1762.0,5.67528]
[1743685583897,11.39173007,1762.3,1761.9,6.397076]
[1743685584099,4.5921,1762.5,1761.7,5.67621]
[1743685584428,11.35116,1762.0,1761.6,5.67665]
[1743685584592,0.04254007,1761.9,1761.4,6.09214482]
[1743685584931,5.67582,1761.9,1761.5,5.67685]
[1743685585148,11.39421007,1761.9,1761.5,5.67685]
[1743685585323,5.71859007,1761.8,1761.5,5.67685]
[1743685585555,5.71859007,1761.8,1761.5,6.81793517]
[1743685585725,5.71859007,1761.8,1761.5,1.14108517]
[1743685585922,5.71859007,1761.8,1761.2,5.6778]
[1743685585923,11.35375,1761.6,1761.2,5.6778]
[1743685586439,7.30141,1761.5,1761.1,11.40638]
[1743685586608,7.30141,1761.5,1761.2,5.67792]
[1743685587343,7.30075,1761.7,1761.3,5.67742]
[1743685587518,7.34329007,1761.7,1761.3,5.67742]
[1743685587925,5.67689,1761.6,1761.2,5.67783]
[1743685588240,5.6771,1761.5,1761.1,11.40635]
[1743685588393,5.6771,1761.5,1761.2,5.6779]
[1743685589223,5.67665,1761.6,1761.3,5.67741]
[1743685589224,5.67666,1761.6,1761.3,5.67741]
[1743685589413,5.71920007,1761.6,1761.2,5.73460263]
[1743685589618,5.71920007,1761.6,1761.2,11.41243263]
[1743685589829,5.71920007,1761.6,1761.3,5.67758]
[1743685589990,0.04254007,1761.6,1761.1,1.190635]
[1743685590195,5.67722,1761.5,1761.1,5.72817]
[1743685590690,5.67717,1761.5,1761.1,5.72817]
[1743685590901,5.67783,1761.3,1761.1,0.05]
[1743685591206,7.36838007,1761.2,1761.1,0.05]
[1743685591522,10.91838007,1761.2,1761.1,0.05]
[1743685591726,1.69044007,1761.2,1761.1,0.05]
[1743685591927,7.36838007,1761.2,1761.1,0.05]
[1743685592233,7.36838007,1761.2,1761.1,1e-05]
[1743685592234,10.78638007,1761.2,1761.1,1e-05]
[1743685592422,14.65621418,1761.2,1761.1,1e-05]
[1743685592731,1.5159,1760.6,1760.1,7.29289]
[1743685592932,5.68106,1760.3,1760.1,0.05]
[1743685593105,5.72371007,1760.2,1760.1,0.05]
[1743685593518,13.2793,1760.5,1760.1,5.73147]
[1743685593818,1.635,1760.9,1760.4,5.68024]
[1743685594018,1.635,1761.2,1760.6,1.6649]
[1743685594206,13.27535,1761.4,1761.0,5.67842]
[1743685594410,5.67847,1761.1,1760.7,5.67945]
[1743685594595,5.72124007,1761.0,1760.6,5.67962]
[1743685594795,11.40003007,1761.0,1760.6,5.67962]
[1743685595000,5.6787,1761.0,1760.6,11.41616264]
[1743685595223,5.6787,1761.0,1760.6,5.67962]
[1743685595224,5.72124007,1761.0,1760.6,5.67962]
[1743685595427,5.67796,1761.2,1760.8,5.67891]
[1743685595628,5.67799,1761.2,1760.9,5.73562683]
[1743685595838,5.67794,1761.2,1760.5,5.67996]
[1743685595994,1.57074007,1761.3,1760.4,1.5453]
[1743685595995,5.67859,1761.0,1760.7,5.67951]
[1743685596200,4.5282,1761.3,1760.6,0.05679199]
[1743685596399,12.92626007,1761.3,1760.9,5.67864]
[1743685596599,5.67803,1761.2,1760.9,5.67864]
[1743685596801,1.5282,1761.3,1761.0,5.67839]
[1743685597035,1.57074007,1761.3,1760.5,3.0]
[1743685597331,5.67902,1760.9,1760.5,5.73687079]
[1743685597521,5.67902,1760.9,1760.3,5.68055]
[1743685597522,5.67976,1760.7,1760.3,5.68055]
[1743685597706,5.67999,1760.6,1760.2,7.30814]
[1743685597910,5.72267007,1760.6,1760.2,7.30822]
[1743685598123,5.68037,1760.5,1760.1,11.41288]
[1743685598327,0.04254007,1760.4,1760.1,11.41282]
[1743685598526,7.597,1760.6,1760.1,5.73135]
[1743685598710,1.635,1760.9,1760.3,1.6271]
[1743685598917,1.67754007,1760.9,1760.3,1.6271]
[1743685599119,1.635,1760.9,1760.6,5.67977]
[1743685599432,1.635,1760.9,1760.6,5.6797]
[1743685599799,1.67754007,1760.9,1760.4,5.68049]
[1743685600107,10.35650007,1760.9,1760.2,0.05679555]
[1743685600312,10.35650007,1760.9,1760.5,5.68009]
[1743685600509,7.35650007,1760.9,1760.5,11.36012]
[1743685600812,13.03562007,1760.9,1760.5,5.68003]
[1743685601011,5.67928,1760.8,1760.4,5.6805]
[1743685601214,5.72210007,1760.7,1760.4,5.6805]
[1743685601618,0.04254007,1760.7,1760.5,5.68019]
[1743685601819,1.67754007,1760.9,1760.6,5.67988]
[1743685602136,7.35652007,1760.9,1760.6,5.67988]
[1743685602933,1.67754007,1760.9,1760.6,5.67975]
[1743685603312,1.67754007,1760.9,1760.6,11.3595]
[1743685603708,7.35646007,1760.9,1760.6,5.67975]
[1743685604007,7.35672007,1760.9,1760.1,7.39553]
[1743685604333,7.33997,1760.2,1760.1,0.05]
[1743685604516,1.6588,1760.2,1760.1,0.05]
[1743685604716,7.594,1760.3,1760.1,0.05]
[1743685604926,13.27497,1760.3,1760.1,0.05]
[1743685605102,5.72371007,1760.2,1760.1,0.05]
[1743685606534,7.594,1760.3,1760.1,0.05]
[1743685606733,7.63654007,1760.3,1760.1,0.05]
[1743685607147,13.31749007,1760.3,1760.1,0.05]
[1743685607332,13.27495,1760.3,1760.1,0.05]
[1743685607644,7.594,1760.3,1760.1,0.05]
[1743685607858,7.594,1760.3,1760.1,5.73125]
[1743685608237,5.68025,1760.5,1760.1,11.41266]
[1743685608444,9.1277,1760.7,1760.1,0.05]
[1743685608445,14.80738,1760.7,1760.1,0.05]
[1743685608751,7.592,1760.7,1760.5,5.68017]
[1743685608950,5.67998,1760.6,1760.3,5.68078]
[1743685609251,5.67998,1760.6,1760.1,0.05]
[1743685609252,7.32488,1760.5,1760.1,5.73147]
[1743685609447,5.72246007,1760.6,1760.2,5.68106]
[1743685609750,7.592,1760.7,1760.4,5.68044]
[1743685609950,7.592,1760.7,1760.5,5.68004]
[1743685610151,7.592,1760.7,1760.5,11.4168671]
[1743685610355,7.592,1760.7,1760.5,11.36007]
[1743685610522,7.592,1760.7,1760.4,7.2056]
[1743685610918,7.1839,1761.0,1760.6,5.67959]
[1743685611131,7.1838,1761.0,1760.6,5.67966]
[1743685611425,7.1838,1761.0,1760.4,7.20572]
[1743685611426,5.67939,1760.8,1760.4,7.20572]
[1743685611630,0.04254007,1760.7,1760.2,5.68113]
[1743685611830,1.5052,1761.0,1760.3,5.68084]
[1743685611831,5.68007,1760.6,1760.3,5.68084]
[1743685612055,5.72179007,1760.8,1760.3,0.05680244]
[1743685612258,5.67892,1760.9,1760.6,5.67987]
[1743685612454,1.54774007,1761.0,1760.4,5.68046]
[1743685612756,5.67953,1760.8,1760.4,5.68041]
[1743685613057,1.5052,1761.0,1760.7,5.67929]
[1743685613219,7.22650007,1761.0,1760.6,5.67977]
[1743685613736,11.35807,1760.9,1760.3,3.0]
[1743685613935,11.35807,1760.9,1760.5,5.68009]
[1743685613936,5.72178007,1760.8,1760.5,5.68009]
[1743685614127,5.72178007,1760.8,1760.4,0.05679756]